bitfinex-derivatives/quotes_ETHF0:USTF0_20240829
["timestamp","ask_amount","ask_price","bid_price","bid_amount"]
[1724974447214,1.1082,2525.8,2525.4,0.3632]
[1724974447413,0.00593848,2525.9,2525.6,4.6378]
[1724974447609,0.00593848,2525.9,2525.8,1.82585]
[1724974447916,1.82574,2526.6,2526.2,0.39579]
[1724974448215,1.43,2526.6,2526.4,0.39576]
[1724974448418,1.43,2526.6,2526.4,0.39575]
[1724974448724,1.82573,2526.6,2526.3,1.14606]
[1724974449314,1.43,2526.6,2526.3,1.14606]
[1724974449816,0.39577,2526.3,2526.2,40.80593848]
[1724974450023,0.39577,2526.3,2526.2,0.00593848]
[1724974450225,0.76067,2526.3,2526.2,0.00593848]
[1724974450917,4.71907,2526.3,2526.2,0.00593848]
[1724974455030,0.76067,2526.3,2526.2,0.00593848]
[1724974455324,0.39577,2526.3,2526.2,0.00593848]
[1724974457523,0.78647,2526.4,2526.2,0.00593848]
[1724974457725,0.3907,2526.4,2526.2,0.00593848]
[1724974457919,0.78647,2526.4,2526.2,0.38963848]
[1724974460120,0.3907,2526.4,2526.2,0.38963848]
[1724974460522,0.3907,2526.4,2526.2,0.78541848]
[1724974460822,0.36133848,2526.7,2526.2,0.78541848]
[1724974460823,0.75705848,2526.7,2526.3,0.39577]
[1724974461022,0.39573,2526.6,2526.3,0.39577]
[1724974461327,0.39573,2526.6,2526.4,0.3895]
[1724974461520,0.39573,2526.6,2526.3,0.39577]
[1724974461521,0.72783848,2526.7,2526.2,0.00593848]
[1724974461724,0.39576,2526.4,2526.2,0.00593848]
[1724974462126,0.3665,2526.3,2526.2,0.00593848]
[1724974462626,0.36133848,2526.7,2526.2,4.36012848]
[1724974462627,0.39575,2526.5,2526.2,4.36012848]
[1724974462826,0.39575,2526.5,2526.2,0.40172848]
[1724974463035,0.39575,2526.5,2526.3,0.3895]
[1724974463228,0.3665,2526.6,2526.4,0.39575]
[1724974463530,0.00593848,2526.7,2526.6,0.39572]
[1724974463728,3.2078,2527.4,2526.6,7.61712]
[1724974463931,0.7261,2527.6,2527.3,0.39561]
[1724974464430,0.7261,2527.6,2527.4,40.8]
[1724974464832,0.39558,2527.5,2527.4,40.8]
[1724974465132,0.39558,2527.5,2527.0,3.2078]
[1724974465133,9.52066706,2527.5,2527.0,3.2078]
[1724974465322,3.42,2527.2,2527.0,3.2078]
[1724974465641,1.53395,2527.1,2527.0,3.2078]
[1724974465932,1.53395,2527.1,2527.0,44.0078]
[1724974466431,1.53395,2527.1,2527.0,3.2078]
[1724974468334,0.39567,2527.0,2526.8,40.8]
[1724974468531,0.39567,2527.0,2526.8,44.0078]
[1724974469040,0.39567,2527.0,2526.8,47.9654]
[1724974469238,0.39568,2526.9,2526.8,47.9654]
[1724974469423,0.39568,2526.9,2526.8,44.0078]
[1724974469833,0.39568,2526.9,2526.8,3.2078]
[1724974470128,1.1383,2527.1,2526.8,3.2078]
[1724974470129,0.39567,2527.0,2526.8,3.2078]
[1724974470324,0.39568,2526.9,2526.8,3.2078]
[1724974470837,0.39567,2527.0,2526.8,3.2078]
[1724974474134,0.39566,2527.0,2526.8,3.60349]
[1724974474437,1.53395,2527.1,2526.8,3.60349]
[1724974474633,6.6278,2527.4,2526.8,3.60349]
[1724974474634,0.39563,2527.3,2527.0,0.39566]
[1724974474840,0.75363,2527.3,2527.0,0.39566]
[1724974475038,0.75363,2527.3,2527.1,0.3762]
[1724974475537,0.75363,2527.3,2527.1,0.7605]
[1724974475736,0.358,2527.3,2527.2,0.39563]
[1724974475929,4.56958,2527.5,2527.2,0.39562]
[1724974476738,4.174,2527.5,2527.1,3.9683]
[1724974476941,4.174,2527.5,2527.4,0.3956]
[1724974477147,0.40148848,2527.8,2527.5,0.39558]
[1724974477442,0.40148848,2527.8,2527.6,0.3661]
[1724974478942,0.39555,2527.7,2527.6,0.3661]
[1724974480939,0.39558,2527.5,2527.4,3.2078]
[1724974481140,0.3956,2527.4,2527.1,3.96574]
[1724974481339,0.3956,2527.4,2527.1,3.5701]
[1724974481340,0.3695,2527.4,2527.1,3.5701]
[1724974481542,0.3695,2527.4,2527.1,3.2078]
[1724974481740,0.39563,2527.2,2527.1,3.2078]
[1724974482343,0.75973,2527.2,2527.1,3.2078]
[1724974483847,0.3641,2527.2,2527.1,3.2078]
[1724974485044,0.75973,2527.2,2527.1,3.2078]
[1724974485738,0.75973,2527.2,2527.0,0.3897]
[1724974491944,0.75973,2527.2,2527.0,0.78536]
[1724974495642,0.3641,2527.2,2527.0,0.3897]
[1724974496142,0.39565,2527.1,2527.0,0.3897]
[1724974496636,0.75974,2527.2,2527.0,0.3897]
[1724974498044,0.75974,2527.2,2527.0,0.78536]
[1724974498251,0.3641,2527.2,2527.1,0.39565]
[1724974498543,0.3956,2527.4,2527.2,0.39562]
[1724974500348,0.3598,2527.5,2527.0,0.3897]
[1724974500552,0.39564,2527.2,2526.9,3.2078]
[1724974500854,0.3633,2527.1,2526.9,3.60347]
[1724974501241,0.989,2527.5,2527.0,3.9576]
[1724974501242,0.3956,2527.5,2527.0,3.9576]
[1724974501446,1.1145,2527.6,2527.2,0.39562]
[1724974501646,0.3956,2527.5,2527.2,0.39562]
[1724974501944,0.3956,2527.5,2527.2,1.14382]
[1724974502142,1.51008,2527.6,2527.3,0.39561]
[1724974502752,1.51008,2527.6,2527.5,3.2078]
[1724974502753,0.3633,2527.6,2527.5,3.2078]
[1724974503351,0.3633,2527.6,2527.3,0.39561]
[1724974503352,0.75887,2527.6,2527.3,0.39561]
[1724974503653,0.3813,2527.5,2527.3,0.39561]
[1724974504052,0.7718,2527.5,2527.3,0.39561]
[1724974504249,0.7718,2527.5,2527.2,4.35162]
[1724974504250,1.16739,2527.5,2527.2,4.35162]
[1724974504646,0.98901,2527.4,2527.0,1.03632636]
[1724974504846,0.39565,2527.1,2526.9,4.24412636]
[1724974505045,0.39565,2527.1,2526.9,3.2078]
[1724974505046,0.7645,2527.0,2526.9,3.2078]
[1724974505649,1.16016,2527.0,2526.9,3.2078]
[1724974505854,1.155,2527.0,2526.9,3.2078]
[1724974506151,0.7645,2527.0,2526.9,3.2078]
[1724974506653,0.7645,2527.0,2526.9,4.24412636]
[1724974507559,1.16016,2527.0,2526.9,4.24412636]
[1724974507947,0.3817,2527.0,2526.9,6.61865198]
[1724974508451,0.3817,2527.0,2526.9,7.13776885]
[1724974509553,0.39564,2527.2,2526.9,8.12727146]
[1724974509854,0.3697,2527.2,2527.0,1.43096883]
[1724974510251,0.76533,2527.2,2527.0,1.03530883]
[1724974511760,0.39565,2527.1,2527.0,1.03530883]
[1724974512155,0.76534,2527.2,2527.0,1.03530883]
[1724974514265,0.39565,2527.1,2527.0,1.03530883]
[1724974514660,0.39565,2527.1,2526.8,1.03530883]
[1724974514661,4.35245,2527.1,2526.8,1.03530883]
[1724974514960,0.39568,2526.9,2526.8,1.03530883]
[1724974515561,0.39569,2526.8,2526.7,41.83530883]
[1724974515751,1.51569,2526.8,2526.7,41.83530883]
[1724974516557,0.39572,2526.6,2526.5,1.03530883]
[1724974516763,0.39574,2526.5,2526.4,4.24310883]
[1724974517065,0.39574,2526.5,2526.4,45.04310883]
[1724974517459,1.12,2526.8,2526.4,45.04310883]
[1724974517460,0.39573,2526.6,2526.4,45.04310883]
[1724974517856,0.39574,2526.5,2526.4,45.04310883]
[1724974519154,1.12,2526.8,2526.4,45.04310883]
[1724974519461,0.39571,2526.7,2526.4,45.78340883]
[1724974521261,0.39571,2526.7,2526.4,45.04310883]
[1724974522463,0.39567,2527.0,2526.6,3.81572]
[1724974522666,1.1028,2527.1,2526.7,5.38310883]
[1724974522963,0.39567,2527.0,2526.7,5.38310883]
[1724974523171,0.39567,2527.0,2526.8,40.8]
[1724974523767,0.39568,2526.9,2526.8,40.8]
[1724974527076,4.35328,2526.9,2526.8,40.8]
[1724974527277,5.34248,2526.9,2526.8,40.8]
[1724974528169,0.39572,2526.6,2526.5,1.03530883]
[1724974528573,0.39572,2526.6,2526.5,41.83530883]
[1724974528967,0.39572,2526.7,2526.5,43.81448276]
[1724974529174,0.39572,2526.7,2526.6,1.03530883]
[1724974529570,0.98908,2527.3,2526.6,1.03530883]
[1724974529571,5.16304,2527.4,2526.6,16.39189281]
[1724974529774,0.39566,2527.1,2526.8,1.43009603]
[1724974529975,6.29444,2527.4,2526.8,1.43009603]
[1724974529976,0.39567,2527.0,2526.8,1.03440603]
[1724974530291,0.39567,2527.0,2526.9,40.8]
[1724974530477,0.39567,2527.0,2526.9,44.7576]
[1724974531178,0.39567,2527.0,2526.9,40.8]
[1724974533483,0.39567,2527.0,2526.7,3.2078]
[1724974533484,0.39569,2526.8,2526.7,4.24220603]
[1724974533879,0.39569,2526.8,2526.7,45.04220603]
[1724974534187,0.39569,2526.8,2526.7,40.8]
[1724974535179,43.32764869,2537.4,2526.7,40.8]
[1724974535383,0.39565,2527.1,2526.8,0.39569]
[1724974535588,0.39565,2527.1,2526.9,0.3654]
[1724974535779,0.39566,2527.0,2526.9,0.7326]
[1724974536175,0.39566,2527.0,2526.9,4.6902]
[1724974536779,0.39561,2527.4,2527.1,0.39564]
[1724974536977,0.39561,2527.4,2527.2,0.3787]
[1724974537187,0.39561,2527.4,2527.3,0.3656]
[1724974537485,0.39561,2527.4,2527.3,0.7233]
[1724974539078,0.3956,2527.4,2527.3,0.7233]
[1724974541088,0.7293,2527.6,2527.3,0.7233]
[1724974541292,0.40147848,2527.8,2527.5,0.39558]
[1724974541477,0.00593848,2527.8,2527.6,0.78486]
[1724974541678,0.00593848,2527.8,2527.7,7.75215]
[1724974541880,0.00593848,2527.8,2527.7,11.70815]
[1724974542386,0.77456,2528.3,2527.9,0.39551]
[1724974542591,0.77456,2528.3,2527.9,1.42949323]
[1724974542792,0.77456,2528.3,2528.1,3.2078]
[1724974542995,0.77456,2528.3,2528.1,44.0078]
[1724974543498,0.77456,2528.3,2528.1,40.8]
[1724974543499,0.39547,2528.2,2528.1,40.8]
[1724974545801,0.76727848,2528.5,2528.1,48.35849]
[1724974546007,0.37183848,2528.5,2528.2,0.3875]
[1724974546193,0.00593848,2528.5,2528.4,6.6278]
[1724974546606,0.00593848,2528.5,2528.4,10.583]
[1724974548303,0.00593848,2528.5,2528.4,3.2078]
[1724974548511,1.11736848,2528.5,2528.4,3.2078]
[1724974548806,0.39545,2528.4,2528.2,0.7756]
[1724974549207,0.39545,2528.4,2528.2,4.7308]
[1724974551608,1.11736848,2528.5,2528.2,4.7308]
[1724974551907,1.11736848,2528.5,2528.2,4.1956]
[1724974553006,0.00593848,2528.5,2528.3,0.39545]
[1724974553696,0.00593848,2528.5,2528.4,3.81544]
[1724974555409,0.00593848,2528.5,2528.4,7.77064]
[1724974559205,0.00593848,2528.5,2528.4,7.3752]
[1724974559509,0.00593848,2528.5,2528.4,3.9552]
[1724974559905,0.00593848,2528.5,2528.3,3.2078]
[1724974559906,0.39544,2528.4,2528.3,3.2078]
[1724974560514,0.77374,2528.4,2528.2,3.2078]
[1724974561511,0.39546,2528.3,2528.2,3.2078]
[1724974563518,0.3783,2528.4,2528.2,3.60327]
[1724974563714,0.00593848,2528.5,2528.3,4.35065]
[1724974564020,0.00593848,2528.5,2528.4,4.17894]
[1724974564215,0.39545,2528.4,2528.2,6.6278]
[1724974564514,0.77265,2528.4,2528.2,6.6278]
[1724974565723,0.39546,2528.3,2528.2,3.2078]
[1724974565920,1.16386,2528.3,2528.2,3.2078]
[1724974566420,1.16386,2528.3,2528.1,40.8]
[1724974566606,0.3772,2528.4,2528.2,3.60326]
[1724974567011,0.77264,2528.4,2528.2,3.2078]
[1724974567718,0.3772,2528.4,2528.2,3.60327]
[1724974568124,0.77264,2528.4,2528.2,3.2078]
[1724974568319,0.39546,2528.3,2528.2,3.2078]
[1724974568707,0.00593848,2528.5,2528.2,10.583]
[1724974568921,0.00593848,2528.5,2528.3,0.39545]
[1724974569318,0.00593848,2528.5,2528.3,4.35065]
[1724974569922,0.00593848,2528.5,2528.3,3.9552]
[1724974570125,0.00593848,2528.5,2528.4,3.81544]
[1724974570308,0.00593848,2528.5,2528.4,3.7738]
[1724974570513,0.00593848,2528.5,2528.4,8.12444]
[1724974576727,0.00593848,2528.5,2528.4,11.33224]
[1724974577934,0.3804,2528.7,2528.4,11.33224]
[1724974577935,11.20708,2529.8,2528.4,16.9368]
[1724974578234,0.3843,2529.1,2528.8,7.02317]
[1724974578424,0.77963,2529.1,2528.8,7.02317]
[1724974578821,0.3843,2529.1,2528.8,7.02317]
[1724974579016,0.39535,2529.0,2528.8,3.2078]
[1724974579428,0.77964,2529.1,2528.8,3.60318]
[1724974580526,0.39535,2529.0,2528.8,3.2078]
[1724974580731,0.77964,2529.1,2528.8,3.2078]
[1724974581525,0.77964,2529.1,2528.8,3.60318]
[1724974581922,0.3843,2529.1,2528.8,3.2078]
[1724974582127,0.39536,2528.9,2528.8,3.2078]
[1724974582333,0.39536,2529.0,2528.8,3.2078]
[1724974582834,0.39536,2529.0,2528.6,3.42]
[1724974582835,0.39537,2528.9,2528.6,3.8154]
[1724974583131,0.3843,2529.1,2528.6,6.6278]
[1724974583332,1.16038,2528.8,2528.6,6.6278]
[1724974583527,0.3879,2528.7,2528.6,6.6278]
[1724974584022,0.3879,2528.7,2528.6,10.5822]
[1724974584534,0.3879,2528.7,2528.6,6.6278]
[1724974585032,0.3879,2528.7,2528.6,3.2078]
[1724974585033,0.7833,2528.7,2528.6,3.2078]
[1724974586427,0.7833,2528.7,2528.6,7.1622]
[1724974586623,0.7833,2528.7,2528.6,8.19618323]
[1724974586831,0.3879,2528.7,2528.6,8.19618323]
[1724974587132,0.3879,2528.7,2528.6,10.5460921]
[1724974587329,0.3879,2528.7,2528.6,11.93028158]
[1724974587628,0.3879,2528.7,2528.6,12.44727319]
[1724974589633,0.15114731,2528.7,2528.6,12.44727319]
[1724974590025,0.15114731,2528.7,2528.6,13.86727319]
[1724974590531,0.39538,2528.9,2528.6,12.71170835]
[1724974590730,0.39536,2529.0,2528.8,2.45389835]
[1724974591834,0.39536,2528.9,2528.8,2.45389835]
[1724974593429,0.39536,2528.9,2528.8,1.42]
[1724974594134,0.39536,2528.9,2528.8,2.45389835]
[1724974594527,0.39536,2528.9,2528.8,1.42]
[1724974595628,0.39536,2528.9,2528.8,2.45389835]
[1724974596028,0.39536,2528.9,2528.8,1.42]
[1724974599833,0.39536,2528.9,2528.7,4.24169835]
[1724974599834,0.39538,2528.8,2528.7,1.03389835]
[1724974600039,0.39538,2528.8,2528.4,2.0739243]
[1724974600040,1.38401,2528.5,2528.4,1.55084753]
[1724974600238,0.39549,2528.1,2528.0,1.55084753]
[1724974600534,0.39549,2528.1,2527.8,5.2817243]
[1724974600535,2.523,2528.4,2527.8,10.78860508]
[1724974600743,0.39551,2528.0,2527.9,1.97814024]
[1724974600933,0.39551,2528.0,2527.8,45.55864753]
[1724974600934,0.39552,2527.9,2527.8,45.55864753]
[1724974601134,5.0701,2527.9,2527.5,4.76458601]
[1724974601341,0.39557,2527.7,2527.5,6.18458601]
[1724974601541,0.39557,2527.7,2527.6,40.8]
[1724974601835,1.1141,2527.9,2527.6,42.22]
[1724974602038,1.1141,2527.9,2527.8,4.6278]
[1724974602039,0.39553,2527.9,2527.8,4.6278]
[1724974603841,0.39553,2527.9,2527.8,3.2078]
[1724974605032,4.35153,2527.9,2527.8,3.2078]
[1724974605237,0.39553,2527.9,2527.8,3.2078]
[1724974605947,0.39555,2527.7,2527.6,44.22]
[1724974606135,0.78515,2527.8,2527.6,40.8]
[1724974606335,0.3829,2527.7,2527.6,40.8]
[1724974607548,0.3829,2527.7,2527.6,44.22]
[1724974608439,0.39555,2527.8,2527.6,44.22]
[1724974608836,0.39555,2527.7,2527.6,44.22]
[1724974609647,4.35155,2527.7,2527.6,40.8]
[1724974609835,5.34044,2527.7,2527.6,40.8]
[1724974611542,5.34044,2527.7,2527.5,0.00593848]
[1724974611543,1.3845,2527.6,2527.5,0.00593848]
[1724974611748,6.4425,2527.6,2527.5,0.00593848]
[1724974615251,6.4433,2527.6,2527.5,0.00593848]
[1724974621853,6.4433,2527.6,2527.5,40.80593848]
[1724974623752,17.56247524,2527.6,2527.5,40.80593848]
[1724974623955,17.56247524,2527.6,2527.5,0.00593848]
[1724974627253,0.39568,2526.9,2526.8,0.3664]
[1724974627660,0.39568,2526.9,2526.8,41.1664]
[1724974627852,0.39568,2526.9,2526.8,41.5345]
[1724974628058,0.39568,2526.9,2526.8,43.3309]
[1724974629259,0.39567,2527.0,2526.8,43.3309]
[1724974629560,0.39567,2527.0,2526.9,3.2078]
[1724974635067,0.00593848,2527.1,2527.0,0.39566]
[1724974635370,0.00593848,2527.1,2527.0,5.77326]
[1724974638463,0.00593848,2527.1,2527.0,11.77326]
[1724974639967,0.00593848,2527.1,2527.0,5.3776]
[1724974640169,0.40158848,2527.1,2527.0,5.3776]
[1724974642076,0.39566,2527.0,2526.9,3.2078]
[1724974642369,0.74876,2527.0,2526.9,3.2078]
[1724974643266,1.46416,2527.0,2526.9,3.2078]
[1724974644775,2.45332,2527.0,2526.9,3.2078]
[1724974645077,1.46416,2527.0,2526.9,3.2078]
[1724974645371,1.10186,2527.0,2526.9,3.2078]
[1724974646665,1.47806,2527.0,2526.9,3.2078]
[1724974647266,0.39568,2526.9,2526.8,40.8]
[1724974647572,1.38488,2526.9,2526.8,40.8]
[1724974647781,5.34248,2526.9,2526.8,40.8]
[1724974648275,5.34248,2526.9,2526.6,0.00593848]
[1724974648276,0.39571,2526.7,2526.6,0.00593848]
[1724974648674,0.39571,2526.7,2526.6,40.80593848]
[1724974649269,1.38499,2526.7,2526.6,40.80593848]
[1724974649674,5.34259,2526.7,2526.6,40.80593848]
[1724974650275,0.39571,2526.7,2526.6,40.80593848]
[1724974650479,0.39571,2526.7,2526.6,44.76353848]
[1724974651374,0.3957,2526.8,2526.6,48.90873848]
[1724974651672,1.0824,2527.0,2526.7,0.3533]
[1724974652571,0.74877,2527.0,2526.7,0.3533]
[1724974653169,0.39568,2526.9,2526.7,0.3533]
[1724974653975,0.74877,2527.0,2526.7,0.3533]
[1724974654881,0.39568,2526.9,2526.7,0.3533]
[1724974657879,0.3531,2527.0,2526.7,0.3533]
[1724974657880,0.74877,2527.0,2526.7,0.3533]
[1724974660679,0.74877,2527.0,2526.7,0.74901]
[1724974660882,0.74877,2527.0,2526.7,0.3533]
[1724974661483,0.74877,2527.0,2526.7,0.749]
[1724974661988,0.74877,2527.0,2526.8,1.42]
[1724974663092,0.39568,2526.9,2526.8,1.42]
[1724974664980,0.39568,2526.9,2526.7,0.3533]
[1724974669388,0.39568,2526.9,2526.7,1.90414753]
[1724974669593,0.39568,2526.9,2526.7,0.3533]
[1724974669892,0.39569,2526.8,2526.7,0.3533]
[1724974670092,0.39569,2526.8,2526.7,2.33238877]
[1724974670289,0.39569,2526.8,2526.7,6.28998877]
[1724974671197,0.39569,2526.8,2526.7,7.67534745]
[1724974671404,0.39569,2526.9,2526.7,7.67534745]
[1724974671597,0.39569,2526.9,2526.7,1.90414753]
[1724974673693,1.47757,2527.0,2526.7,2.29984753]
[1724974673889,0.00593848,2527.1,2527.0,0.39566]
[1724974674085,0.00593848,2527.1,2527.0,5.77246]
[1724974674291,0.00593848,2527.1,2527.0,9.13645238]
[1724974674493,0.00593848,2527.1,2527.0,11.44389991]
[1724974674688,0.00593848,2527.1,2527.0,9.89305238]
[1724974675703,0.00593848,2527.1,2527.0,13.10085238]
[1724974676093,0.00593848,2527.1,2527.0,9.89305238]
[1724974676294,0.00593848,2527.1,2527.0,13.10085238]
[1724974676495,0.00593848,2527.1,2527.0,14.65169991]
[1724974676800,0.00593848,2527.1,2527.0,14.25603991]
[1724974677004,0.00593848,2527.1,2527.0,14.65169991]
[1724974678091,0.3771,2527.4,2527.0,14.65169991]
[1724974678292,0.3632,2527.7,2527.3,3.2078]
[1724974678493,0.3632,2527.7,2527.6,1.81557]
[1724974678801,0.3687,2527.8,2527.6,5.02337]
[1724974679003,0.3687,2527.8,2527.7,40.8]
[1724974679299,0.3687,2527.8,2527.7,42.22]
[1724974679802,0.76424,2527.8,2527.7,40.8]
[1724974680496,0.3687,2527.8,2527.7,40.8]
[1724974680693,0.76424,2527.8,2527.7,40.8]
[1724974682503,0.3687,2527.8,2527.7,40.8]
[1724974682798,0.7253,2527.9,2527.7,46.176]
[1724974683003,1.12083,2527.9,2527.7,40.8]
[1724974685098,0.39554,2527.8,2527.7,40.8]
[1724974685604,0.39554,2527.8,2527.7,44.756]
[1724974687700,1.12083,2527.9,2527.7,44.756]
[1724974687894,1.12083,2527.9,2527.7,40.8]
[1724974688099,1.12083,2527.9,2527.8,0.3726]
[1724974688306,0.3632,2528.1,2527.8,1.7926]
[1724974688502,0.3632,2528.1,2527.8,2.5283]
[1724974688707,0.39551,2528.0,2527.8,2.5283]
[1724974688900,0.3632,2528.1,2527.8,2.5283]
[1724974688901,0.39552,2527.9,2527.8,2.5283]
[1724974689095,0.39552,2527.9,2527.8,43.3283]
[1724974689297,0.39551,2528.0,2527.8,43.3283]
[1724974690708,0.3632,2528.1,2527.8,43.3283]
[1724974690906,0.39551,2528.0,2527.8,46.5361]
[1724974691299,0.3632,2528.1,2527.8,46.5361]
[1724974691300,0.7587,2528.1,2527.8,46.5361]
[1724974691506,0.3632,2528.1,2528.0,1.42]
[1724974691704,10.0068,2528.7,2528.0,4.6278]
[1724974691705,4.6278,2528.7,2528.0,4.6278]
[1724974691902,4.6278,2528.7,2528.0,4.63373848]
[1724974691903,0.78457,2528.3,2528.0,4.63373848]
[1724974692205,0.39547,2528.2,2528.0,4.63373848]
[1724974692406,0.78457,2528.3,2528.0,4.63373848]
[1724974692615,0.39548,2528.2,2528.0,4.63373848]
[1724974692814,0.39549,2528.1,2528.0,4.63373848]
[1724974693008,0.77269,2528.1,2528.0,4.63373848]
[1724974693202,0.3772,2528.1,2528.0,7.16973848]
[1724974695912,0.3772,2528.1,2528.0,3.96193848]
[1724974696112,0.77269,2528.1,2528.0,0.00593848]
[1724974696310,1.16019,2528.1,2528.0,0.00593848]
[1724974697907,7.52492,2528.1,2528.0,0.00593848]
[1724974698108,13.52492,2528.1,2528.0,0.00593848]
[1724974700519,0.39557,2527.6,2527.5,40.8]
[1724974721139,0.00593848,2527.8,2527.5,42.22]
[1724974721334,0.00593848,2527.8,2527.7,3.60335]
[1724974721527,0.00593848,2527.8,2527.7,8.59235764]
[1724974721835,4.174,2528.1,2528.0,0.39551]
[1724974722140,4.174,2528.1,2528.0,6.05572875]
[1724974722344,4.174,2528.1,2528.0,11.98957899]
[1724974722642,4.174,2528.1,2528.0,11.97796899]
[1724974722829,4.174,2528.1,2528.0,10.36083973]
[1724974723942,4.174,2528.1,2528.0,12.33875372]
[1724974724334,4.174,2528.1,2528.0,10.91886961]
[1724974724543,4.174,2528.1,2528.0,4.62415562]
[1724974724544,4.56949,2528.1,2528.0,4.62415562]
[1724974724841,4.56949,2528.1,2528.0,3.5917]
[1724974725027,4.56949,2528.1,2528.0,4.62415562]
[1724974726037,0.39549,2528.1,2528.0,4.62415562]
[1724974727639,0.39549,2528.1,2528.0,0.3839]
[1724974727837,0.39549,2528.1,2528.0,3.5917]
[1724974728637,0.39549,2528.1,2528.0,0.3839]
[1724974728843,0.39549,2528.1,2528.0,3.5917]
[1724974731542,0.39548,2528.2,2528.0,3.5917]
[1724974731943,0.39548,2528.2,2528.1,0.3892]
[1724974732343,0.39545,2528.4,2528.1,0.78468]
[1724974732642,0.39545,2528.4,2528.2,0.3739]
[1724974734147,3.2078,2528.6,2528.2,0.3739]
[1724974734343,0.39546,2528.3,2528.2,0.3739]
[1724974734544,0.76265,2528.4,2528.2,0.3739]
[1724974735249,0.3672,2528.4,2528.2,0.3739]
[1724974735546,3.2078,2528.6,2528.2,2.18937]
[1724974735547,0.39543,2528.5,2528.2,2.18937]
[1724974735747,3.2078,2528.6,2528.2,2.18937]
[1724974735748,3.60322,2528.6,2528.2,2.18937]
[1724974736336,0.76261,2528.7,2528.3,3.60325]
[1724974736545,0.7342,2528.8,2528.4,2.19654]
[1724974736748,1.12959,2528.8,2528.6,1.42]
[1724974737146,1.12959,2528.8,2528.7,40.8]
[1724974738753,0.39541,2528.6,2528.5,0.3831]
[1724974739249,0.39543,2528.5,2528.4,40.8]
[1724974739451,0.75863,2528.5,2528.4,40.8]
[1724974741944,0.75863,2528.5,2528.3,3.2078]
[1724974741945,0.39544,2528.4,2528.3,3.2078]
[1724974742147,0.39544,2528.4,2528.0,4.35305604]
[1724974742148,0.39549,2528.1,2528.0,4.24025562]
[1724974742346,0.39548,2528.2,2528.0,4.62545562]
[1724974742539,0.39548,2528.2,2528.1,40.8]
[1724974742741,0.39548,2528.2,2528.1,42.22]
[1724974743547,0.39548,2528.2,2528.1,42.599]
[1724974744247,0.7523,2528.4,2528.0,3.2078]
[1724974744248,0.39549,2528.1,2528.0,3.2078]
[1724974744548,0.78329,2528.1,2528.0,3.2078]
[1724974744752,0.78329,2528.1,2528.0,44.0078]
[1724974747848,0.78329,2528.1,2528.0,40.8]
[1724974748155,0.78329,2528.1,2528.0,44.0078]
[1724974749055,7.14802,2528.1,2528.0,40.8]
[1724974749852,5.72802,2528.1,2528.0,40.8]
[1724974750051,5.72802,2528.1,2527.6,3.2078]
[1724974750052,11.7638,2528.1,2527.6,3.2078]
[1724974750350,0.39555,2527.7,2527.6,3.2078]
[1724974750540,0.39555,2527.7,2527.6,44.0078]
[1724974753744,4.35155,2527.7,2527.6,44.0078]
[1724974753949,0.39555,2527.7,2527.6,44.0078]
[1724974757049,0.39555,2527.7,2527.6,40.8]
[1724974757254,0.39555,2527.7,2527.6,44.0078]
[1724974759458,0.39558,2527.5,2527.4,1.03245562]
[1724974759652,1.1146,2527.6,2527.3,4.6196941]
[1724974759851,0.3956,2527.4,2527.3,3.58723848]
[1724974760054,0.3956,2527.4,2527.3,44.38723848]
[1724974760752,0.3956,2527.4,2527.3,45.4196941]
[1724974761860,0.3956,2527.4,2527.3,44.38723848]
[1724974763664,0.3956,2527.4,2527.3,44.01373848]
[1724974764463,1.38461,2527.4,2527.3,40.80593848]
[1724974764666,3.79362,2527.4,2527.3,0.00593848]
[1724974764852,7.75042,2527.4,2527.3,0.00593848]
[1724974768764,1.38477,2527.1,2527.0,40.8]
[1724974770464,0.39568,2526.9,2526.8,5.72763848]
[1724974770969,0.39568,2526.9,2526.8,46.52763848]
[1724974771264,0.39568,2526.9,2526.8,50.48523848]
[1724974772269,0.39568,2526.9,2526.8,40.80593848]
[1724974774569,2.5435,2527.2,2526.8,42.22593848]
[1724974774570,0.39567,2527.0,2526.8,42.22593848]
[1724974774776,3.21373848,2527.3,2526.9,3.2078]
[1724974775073,0.00593848,2527.3,2527.2,1.42]
[1724974775277,0.40155848,2527.3,2527.1,1.42]
[1724974778377,0.39563,2527.2,2527.1,1.42]
[1724974778876,0.39565,2527.1,2527.0,0.7416]
[1724974789275,0.39568,2526.9,2526.8,40.80593848]
[1724974789476,2.80488,2526.9,2526.8,40.80593848]
[1724974789883,3.17738,2526.9,2526.8,40.80593848]
[1724974790180,3.53278,2526.9,2526.8,40.80593848]
[1724974791976,3.53278,2526.9,2526.8,0.00593848]
[1724974794981,7.49038,2526.9,2526.8,0.00593848]
[1724974795182,7.49038,2526.9,2526.5,3.2078]
[1724974795183,0.39572,2526.6,2526.5,3.2078]
[1724974795689,0.77792,2526.6,2526.5,3.2078]
[1724974798188,0.39574,2526.5,2526.4,40.8]
[1724974798488,0.39574,2526.6,2526.4,44.0078]
[1724974798689,0.39574,2526.6,2526.5,1.42]
[1724974798982,1.7171,2526.9,2526.5,1.81574]
[1724974798983,0.39572,2526.7,2526.5,1.81574]
[1724974799187,0.39572,2526.7,2526.6,0.7417]
[1724974803386,0.98919,2527.0,2526.6,0.7417]
[1724974803593,0.3957,2526.8,2526.7,0.3574]
[1724974808881,0.7505,2526.8,2526.7,0.3574]
[1724974810393,0.3541,2527.2,2526.7,9.07142813]
[1724974810596,0.39567,2527.0,2526.8,1.03411924]
[1724974811293,0.39568,2526.9,2526.8,1.03411924]